bitfinex/quotes_SOLUSD_20250915
["timestamp","ask_amount","ask_price","bid_price","bid_amount"]
[1757915507219,20.15872377,243.99,243.98,0.03]
[1757915509221,51.53872377,243.99,243.98,0.03]
[1757915511600,48.08910332,243.99,243.98,0.03]
[1757915513843,47.21753133,243.99,243.98,0.03]
[1757915515023,46.52753133,243.99,243.98,0.03]
[1757915516325,44.97559401,243.99,243.98,0.03]
[1757915516660,46.52753133,243.99,243.98,0.03]
[1757915522142,44.99559401,243.99,243.98,0.68]
[1757915522315,46.54753133,243.99,243.98,0.68]
[1757915524344,46.54753133,243.99,243.98,4.77869661]
[1757915525645,46.54753133,243.99,243.98,0.03]
[1757915526145,46.54753133,243.99,243.98,0.68]
[1757915526445,46.54753133,243.99,243.98,4.77869661]
[1757915526830,46.54753133,243.99,243.98,4.12869661]
[1757915527342,1e-08,244.01,243.98,15.02543814]
[1757915527533,1.55193732,244.0,243.99,0.65]
[1757915528548,1.55193732,244.02,244.0,14.34426228]
[1757915528845,1.55193732,244.02,244.01,0.72]
[1757915529247,1.55193732,244.02,244.01,2.36341914]
[1757915529545,0.06,244.03,244.01,2.36341914]
[1757915529850,1.61193732,244.03,244.01,5.74161183]
[1757915530141,1e-08,244.03,244.01,5.74161183]
[1757915530451,0.06,244.04,244.02,0.72]
[1757915530752,1.55193732,244.03,244.02,0.72]
[1757915531538,26.06,244.04,244.02,0.72]
[1757915531736,1.55193732,244.05,244.03,4.09785682]
[1757915531933,1.55193732,244.05,244.04,0.72]
[1757915532255,44.97559401,244.1,244.04,0.72]
[1757915532554,1.55193732,244.05,244.04,0.72]
[1757915532938,1.55193732,244.05,244.04,4.8176889]
[1757915535163,1.55193732,244.05,244.04,4.0976889]
[1757915535323,1.55193732,244.05,244.04,4.8176889]
[1757915536550,1.55193732,244.05,244.04,4.0976889]
[1757915536551,28.21193732,244.05,244.04,4.0976889]
[1757915536927,27.55193732,244.05,244.04,4.0976889]
[1757915537641,28.21193732,244.05,244.04,4.0976889]
[1757915537843,2.21193732,244.05,244.04,4.0976889]
[1757915538039,26.0,244.03,244.0,10.24583641]
[1757915538352,26.0,244.03,244.0,14.34419706]
[1757915538353,1.55193732,244.01,244.0,14.34419706]
[1757915538547,1.55193732,244.01,243.98,0.03]
[1757915538740,1.55193732,243.99,243.98,0.03]
[1757915540032,28.21193732,243.99,243.98,0.03]
[1757915540349,58.93193732,243.99,243.98,0.03]
[1757915549840,73.18753133,243.99,243.98,0.03]
[1757915550369,75.9476732,243.99,243.98,0.03]
[1757915550656,82.15542248,243.99,243.98,0.03]
[1757915551050,86.28446804,243.99,243.98,0.03]
[1757915555260,85.62446804,243.99,243.98,0.03]
[1757915555767,75.2876732,243.99,243.98,0.03]
[1757915556147,76.93170024,243.99,243.98,0.03]
[1757915557867,75.2876732,243.99,243.98,0.75]
[1757915559166,75.2876732,243.99,243.98,0.03]
[1757915560190,75.28725755,243.99,243.98,0.74]
[1757915561972,75.28725755,243.99,243.98,4.83869661]
[1757915562566,28.75972622,243.99,243.98,4.83869661]
[1757915562770,2.75972622,243.99,243.98,4.83869661]
[1757915562957,132.5,244.02,243.98,25.36331132]
[1757915562958,2.75972622,244.01,243.98,25.36331132]
[1757915563273,1.55193732,244.02,243.99,0.71]
[1757915563871,1.55193732,244.01,243.99,13.03665639]
[1757915564076,1.55193732,244.01,244.0,4.80836065]
[1757915564754,1.55193732,244.02,244.0,15.05426228]
[1757915564978,1.55193732,244.02,244.01,0.71]
[1757915566162,1.55193732,244.02,244.01,4.80819269]
[1757915567555,1.55193732,244.02,244.01,4.09819269]
[1757915567973,1.55193732,244.02,244.0,10.24590163]
[1757915567974,26.0,244.0,243.99,4.09839355]
[1757915568173,58.93193732,244.0,243.99,4.80839355]
[1757915569484,27.55193732,244.0,243.99,4.80839355]
[1757915570487,27.55193732,244.0,243.99,4.09839355]
[1757915570875,58.93193732,244.0,243.99,4.09839355]
[1757915572769,58.93193732,244.0,243.99,0.71]
[1757915573166,27.55193732,244.0,243.99,0.71]
[1757915574774,27.55193732,244.0,243.99,4.80852862]
[1757915575895,28.4237593,244.0,243.99,4.80852862]
[1757915576096,2.4237593,244.0,243.99,15.05485019]
[1757915578487,2.4237593,244.02,243.99,15.05485019]
[1757915578686,2.4837593,244.04,244.0,0.67]
[1757915579487,0.06,244.04,244.0,0.67]
[1757915579682,1e-08,244.04,244.0,0.67]
[1757915580375,1e-08,244.05,244.01,16.76743373]
[1757915580697,1e-08,244.05,244.02,0.67]
[1757915580901,2.42375931,244.05,244.02,0.67]
[1757915581398,0.06,244.04,244.02,0.67]
[1757915581898,2.4237593,244.03,244.01,14.34367443]
[1757915582076,2.4237593,244.02,244.01,15.01367443]
[1757915583687,2.4237593,244.02,244.01,14.34367443]
[1757915584799,2.4237593,244.02,244.01,10.24548174]
[1757915585006,2.4237593,244.02,244.01,10.91548174]
[1757915585814,2.4237593,244.02,244.01,10.24548174]
[1757915587108,2.4237593,244.02,244.0,0.67]
[1757915587281,2.4237593,244.02,244.01,0.67]
[1757915587609,2.4237593,244.02,243.99,20.52264314]
[1757915587784,2.4237593,244.0,243.99,0.7]
[1757915589289,2.4237593,244.0,243.99,4.79852862]
[1757915591743,2.4237593,244.0,243.99,4.12852862]
[1757915592083,2.4237593,244.0,243.99,0.03]
[1757915594205,0.06,244.04,243.99,0.7]
[1757915594383,2.4237593,244.0,243.99,0.03]
[1757915595007,2.4237593,244.0,243.99,4.79852862]
[1757915597611,2.4237593,244.0,243.99,15.04485019]
[1757915601210,2.4237593,244.0,243.99,14.37485019]
[1757915601416,2.4237593,244.0,243.99,15.04485019]
[1757915603399,0.06,244.06,244.03,26.0]
[1757915603597,0.06,244.06,244.02,26.0]
[1757915603598,2.4237593,244.13,244.06,2.4237593]
[1757915603797,2.4237593,244.13,244.04,31.38]
[1757915603798,2.4237593,244.11,244.07,0.67]
[1757915604013,2.4237593,244.1,244.08,0.67]
[1757915604233,2.4237593,244.1,244.08,3.0937593]
[1757915604513,2.4237593,244.1,244.09,0.67]
[1757915605118,2.4237593,244.1,244.08,2.4237593]
[1757915605316,2.4237593,244.09,244.08,3.0937593]
[1757915605528,2.4237593,244.09,244.08,7.19077667]
[1757915605709,2.4237593,244.09,244.08,4.09701737]
[1757915606310,31.5375186,244.09,244.08,4.09701737]
[1757915606504,45.13311261,244.09,244.08,4.09701737]
[1757915606915,13.59559401,244.08,244.04,4.0976889]
[1757915607118,2.4237593,244.06,244.05,0.67]
[1757915607428,2.4237593,244.06,244.04,15.01191115]
[1757915607802,2.4237593,244.05,244.04,15.01191115]
[1757915608527,3.44864651,244.16,244.04,17.43567045]
[1757915608704,2.4237593,244.12,244.05,3.0937593]
[1757915608904,2.4237593,244.11,244.06,0.67]
[1757915609512,2.4237593,244.11,244.07,14.34014831]
[1757915609698,2.4237593,244.11,244.08,0.67]
[1757915609904,2.4237593,244.11,244.09,0.67]
[1757915611911,26.0,244.16,244.1,0.67]
[1757915612225,2.4237593,244.13,244.1,0.67]
[1757915612424,2.4237593,244.11,244.07,26.66123586]
[1757915612616,2.4237593,244.09,244.07,14.34014831]
[1757915613018,2.4237593,244.08,244.07,14.34014831]
[1757915613539,2.4237593,244.08,244.07,15.01014831]
[1757915613912,2.4237593,244.1,244.07,15.01014831]
[1757915614113,2.4237593,244.1,244.08,0.67]
[1757915614328,0.69,244.13,244.07,14.34014831]
[1757915614329,2.4237593,244.09,244.07,14.34014831]
[1757915614935,2.4237593,244.09,244.07,15.01014831]
[1757915615237,2.4237593,244.08,244.07,15.01014831]
[1757915618436,2.4237593,244.08,244.07,10.24296308]
[1757915620249,5.5175186,244.08,244.04,4.09753641]
[1757915620414,2.4237593,244.05,244.04,4.09753641]
[1757915621844,2.4237593,244.05,244.03,10.24424894]
[1757915622031,2.4237593,244.04,244.03,10.24424894]
[1757915624842,3.0937593,244.04,244.03,10.24424894]
[1757915625231,3.0937593,244.04,244.02,4.09802475]
[1757915625430,2.4237593,244.03,244.02,4.09802475]
[1757915627345,2.4237593,244.03,244.02,0.71]
[1757915628541,2.4237593,244.03,244.02,4.80802475]
[1757915628943,31.64,244.06,244.02,4.80802475]
[1757915628944,26.0,244.07,244.02,15.05308663]
[1757915629129,26.0,244.07,244.03,0.71]
[1757915629333,2.4237593,244.05,244.03,0.71]
[1757915630326,2.4237593,244.05,244.04,0.71]
[1757915630527,2.4237593,244.05,244.02,0.71]
[1757915630722,2.4237593,244.05,244.03,0.71]
[1757915631437,2.4237593,244.04,244.01,0.71]
[1757915631641,2.4237593,244.02,243.99,35.57749333]
[1757915631946,2.4237593,244.01,244.0,0.71]
[1757915632646,2.4237593,244.01,244.0,4.80836065]
[1757915633954,2.4237593,244.02,244.0,15.05426228]
[1757915635350,2.4237593,244.02,244.01,0.71]
[1757915636327,2.4237593,244.02,244.01,4.80819269]
[1757915636630,3.0937593,244.02,244.01,4.09819269]
[1757915636827,2.4237593,244.02,244.01,4.09819269]
[1757915637030,0.06,244.08,244.01,37.96839721]
[1757915637240,0.06,244.08,244.04,2.4237593]
[1757915637633,0.06,244.08,244.05,0.71]
[1757915638360,0.06,244.08,244.06,4.0973531]
[1757915638739,0.06,244.08,244.07,0.67]
[1757915639934,1.60967911,244.08,244.06,4.0973531]
[1757915640170,1.60967911,244.08,244.05,14.3412571]
[1757915640171,1.54967911,244.07,244.05,14.3412571]
[1757915640466,1.54967911,244.07,244.05,15.0112571]
[1757915640665,1.54967911,244.07,244.06,0.67]
[1757915641282,2.20967911,244.07,244.02,14.34308663]
[1757915641457,1.54967911,244.03,244.01,4.09808309]
[1757915641658,1.54967911,244.03,244.02,0.67]
[1757915642357,26.0,244.07,244.02,0.67]
[1757915642554,0.06,244.08,244.02,0.67]
[1757915642764,1.54967911,244.05,244.02,0.67]
[1757915643149,1.54967911,244.05,244.03,0.67]
[1757915643356,1.54967911,244.05,244.04,4.0976889]
[1757915644077,2.20967911,244.05,244.04,4.0976889]
[1757915644254,1.54967911,244.05,244.04,4.0976889]
[1757915644659,0.72,244.08,244.04,14.34191115]
[1757915644863,1.54967911,244.05,244.04,14.34191115]
[1757915645567,1.54967911,244.05,244.04,10.24422225]
[1757915646972,1.54967911,244.05,244.04,10.91422225]
[1757915647680,1.54967911,244.05,244.04,10.24422225]
[1757915647980,1.54967911,244.05,244.04,0.67]
[1757915649182,1.54967911,244.05,244.04,4.7676889]
[1757915649562,1.54967911,244.07,244.04,15.01191115]
[1757915649887,1.54967911,244.07,244.05,0.66]
[1757915650063,1.54967911,244.07,244.06,0.66]
[1757915650953,1.54967911,244.07,244.06,4.7573531]
[1757915652477,0.06,244.08,244.06,4.7573531]
[1757915652677,1.60967911,244.08,244.06,4.0973531]
[1757915652880,1.60967911,244.08,244.07,0.66]
[1757915654375,1.60967911,244.08,244.07,4.75718523]
[1757915655079,0.06,244.08,244.07,4.75718523]
[1757915656568,0.06,244.08,244.07,4.09718523]
[1757915658082,0.06,244.08,244.06,4.0973531]
[1757915658289,0.06,244.08,244.06,4.7573531]
[1757915658677,0.06,244.08,244.07,0.66]
[1757915659168,0.06,244.09,244.07,0.66]
[1757915659568,0.06,244.09,244.08,0.66]
[1757915660689,0.06,244.09,244.08,4.75701737]
[1757915663291,0.06,244.09,244.08,0.66]
[1757915664501,0.06,244.09,244.08,4.75701737]
[1757915666983,1e-08,244.09,244.08,4.75701737]
[1757915667187,1e-08,244.1,244.08,4.75701737]
[1757915667391,1e-08,244.1,244.09,0.66]
[1757915669894,1e-08,244.1,244.09,4.75684952]
[1757915673290,1e-08,244.1,244.09,4.09684952]
[1757915675096,1e-08,244.1,244.07,14.34014831]
[1757915675302,1e-08,244.1,244.07,15.00014831]
[1757915675998,1.54967911,244.09,244.07,14.34014831]
[1757915676997,1.54967911,244.09,244.07,10.24296308]
[1757915679492,2.24967911,244.09,244.07,10.24296308]
[1757915680012,1.54967911,244.09,244.07,10.24296308]
[1757915680300,1e-08,244.1,244.08,0.69]
[1757915682006,1e-08,244.1,244.09,4.09684952]
[1757915682403,1e-08,244.1,244.09,4.78684952]
[1757915686313,1e-08,244.1,244.07,10.24296308]
[1757915686908,1e-08,244.1,244.08,0.69]
[1757915687324,1e-08,244.1,244.09,4.09684952]
[1757915688598,1e-08,244.1,244.07,0.69]
[1757915688896,1e-08,244.1,244.08,0.69]
[1757915689915,1e-08,244.1,244.09,0.03]
[1757915691716,1e-08,244.1,244.09,4.12684952]
[1757915694922,1.54967912,244.1,244.09,4.12684952]
[1757915696619,1.54967912,244.1,244.09,0.03]
[1757915697905,2.42175294,244.1,244.09,0.03]
[1757915698596,1e-08,244.1,244.09,0.72]
[1757915699837,1e-08,244.1,244.09,4.81684952]
[1757915704995,1e-08,244.14,244.09,15.05897332]
[1757915705210,2.42175293,244.17,244.1,0.69]
[1757915706031,26.0,244.19,244.11,34.82036785]
[1757915706206,2.42175293,244.17,244.12,0.69]
[1757915706711,2.42175293,244.17,244.13,0.69]
[1757915706912,2.42175293,244.17,244.14,0.69]
[1757915707929,2.42175293,244.17,244.15,4.09584271]
[1757915709333,2.42175293,244.17,244.14,10.23996604]
[1757915709908,0.06,244.15,244.14,10.23996604]
[1757915710215,0.06,244.15,244.14,10.89996604]
[1757915710420,0.06,244.15,244.14,14.99597652]
[1757915711018,0.06,244.15,244.14,14.33597652]
[1757915712228,0.06,244.15,244.14,10.23996604]
[1757915713618,0.06,244.15,244.14,10.89996604]
[1757915714423,0.06,244.15,244.14,14.99597652]
[1757915717540,31.64,244.18,244.14,14.99597652]
[1757915717708,2.42175293,244.17,244.14,14.99597652]
[1757915718218,2.42175293,244.16,244.15,0.66]
[1757915719235,2.42175293,244.17,244.16,14.33486237]
[1757915719740,2.42175293,244.17,244.16,14.99486237]
[1757915720548,2.42175293,244.19,244.16,14.99486237]
[1757915720844,2.42175293,244.19,244.17,0.66]
[1757915721934,2.42175293,244.35,244.2,20.0]
[1757915722119,2.42175293,244.37,244.26,2.42175293]
[1757915722436,0.68,244.39,244.29,14.32723401]
[1757915722613,3.10175293,244.39,244.3,2.42175293]
[1757915722813,3.10175293,244.39,244.31,0.66]
[1757915723240,0.68,244.39,244.31,0.66]
[1757915723426,2.42175293,244.38,244.31,0.66]
[1757915724040,2.42175293,244.38,244.32,12.30794478]
[1757915724244,0.68,244.37,244.32,12.30794478]
[1757915724420,3.10175293,244.36,244.33,14.32488846]
[1757915724620,2.42175293,244.36,244.33,14.32488846]
[1757915724917,0.68,244.38,244.33,26.63283324]
[1757915725116,3.10175293,244.38,244.33,27.29283324]
[1757915725641,0.68,244.37,244.33,26.63283324]
[1757915725839,0.68,244.37,244.33,27.29283324]
[1757915726547,2.42175293,244.38,244.34,0.66]
[1757915726737,2.42175293,244.38,244.33,26.63283324]
[1757915726936,3.10175293,244.38,244.33,27.29283324]
[1757915727328,0.68,244.37,244.33,26.63283324]
[1757915727534,2.42175293,244.37,244.34,0.66]
[1757915727720,0.74,244.39,244.34,0.66]
[1757915727925,3.10175293,244.38,244.34,0.66]
[1757915728450,2.42175293,244.36,244.35,14.32371598]
[1757915729124,0.68,244.38,244.35,14.32371598]
[1757915729323,2.42175293,244.36,244.35,14.32371598]
[1757915730341,3.10175293,244.36,244.35,14.32371598]
[1757915731250,2.42175293,244.36,244.35,14.32371598]
[1757915731439,3.10175293,244.36,244.35,14.32371598]
[1757915731641,0.74,244.39,244.35,14.32371598]
[1757915731840,2.42175293,244.36,244.35,14.32371598]
[1757915732233,2.42175293,244.36,244.35,14.98371598]
[1757915732441,2.42175293,244.36,244.35,14.32371598]
[1757915734452,2.42175293,244.36,244.32,14.32547478]
[1757915734653,2.42175293,244.36,244.34,12.96743985]
[1757915735856,0.06,244.39,244.35,14.32371598]
[1757915736064,2.42175293,244.36,244.35,14.32371598]
[1757915736741,0.68,244.38,244.35,16.74546891]
[1757915736941,2.42175293,244.36,244.35,16.74546891]
[1757915738635,0.06,244.39,244.35,17.40546891]
[1757915738842,0.06,244.39,244.36,0.66]
[1757915738843,2.42175293,244.37,244.36,0.66]
[1757915740761,2.42175293,244.37,244.35,16.74546891]
[1757915741055,2.42175293,244.37,244.36,0.66]
[1757915741456,2.42175293,244.37,244.35,16.74546891]
[1757915741658,2.42175293,244.37,244.35,17.40546891]
[1757915741955,0.06,244.39,244.37,4.09215533]
[1757915742135,2.42175293,244.38,244.37,4.09215533]
[1757915742331,2.42175293,244.38,244.37,4.75215533]
[1757915743459,0.06,244.39,244.37,4.75215533]
[1757915743645,2.48175293,244.39,244.37,4.75215533]
[1757915744052,0.06,244.39,244.37,4.75215533]
[1757915744364,2.48175293,244.39,244.37,4.09215533]
[1757915744655,2.42175293,244.38,244.37,4.09215533]
[1757915746168,2.42175293,244.38,244.36,4.0923228]
[1757915746355,3.12175293,244.37,244.36,16.74488273]
[1757915746540,3.12175293,244.37,244.36,14.3231298]
[1757915748054,3.12175293,244.37,244.33,14.32488846]
[1757915748255,2.42175293,244.34,244.33,14.32488846]
[1757915748453,2.42175293,244.34,244.33,14.98488846]
[1757915748949,2.42175293,244.34,244.33,10.23206319]
[1757915749146,0.06,244.39,244.33,10.89206319]
[1757915749453,0.06,244.39,244.34,0.66]
[1757915749661,0.7,244.38,244.34,0.66]
[1757915749968,0.06,244.39,244.33,10.23206319]
[1757915750268,0.7,244.37,244.33,10.23206319]
[1757915750652,2.42175293,244.34,244.33,10.23206319]
[1757915754778,2.42175293,244.34,244.33,14.32488846]
[1757915756369,2.42175293,244.34,244.33,10.89206319]
[1757915756886,2.42175293,244.34,244.33,10.23206319]
[1757915758073,2.42175293,244.34,244.33,14.32488846]
[1757915759683,2.42175293,244.34,244.33,15.04488846]
[1757915759881,1.54654761,244.34,244.33,15.04488846]
[1757915760056,1.54654761,244.34,244.33,14.32488846]
[1757915760654,1.54654761,244.34,244.33,15.04488846]
[1757915761275,1.54654761,244.34,244.32,20.46496398]
[1757915761479,1.54654761,244.34,244.33,0.72]
[1757915761785,1.54654761,244.34,244.32,20.46496398]
[1757915761984,1.54654761,244.34,244.32,21.18496398]
[1757915762788,1.54654761,244.34,244.32,25.27795677]
[1757915762981,1.54654761,244.34,244.32,35.51043876]
[1757915763481,1.54654761,244.34,244.33,0.72]
[1757915763790,1.54654761,244.34,244.32,34.79043876]
[1757915763969,1.54654761,244.34,244.32,35.51043876]
[1757915764288,1.54654761,244.34,244.33,0.72]
[1757915764872,1.54654761,244.34,244.33,15.07488846]
[1757915765565,1.54654761,244.34,244.33,14.35488846]
[1757915765776,1.54654761,244.35,244.33,14.35488846]
[1757915766276,1.54654761,244.35,244.33,15.07488846]
[1757915766677,1.54654761,244.35,244.33,14.35488846]
[1757915766909,1.54654761,244.35,244.33,10.26206319]
[1757915769097,1.54654761,244.34,244.33,14.35488846]
[1757915769394,1.54654761,244.35,244.33,14.35488846]
[1757915770780,0.06,244.38,244.34,0.66]
[1757915770995,1.60654761,244.38,244.35,0.66]
[1757915771304,2.30654761,244.38,244.35,0.66]
[1757915771507,0.7,244.37,244.33,15.01488846]
[1757915771795,2.24654761,244.37,244.33,15.01488846]
[1757915773486,2.24654761,244.37,244.34,0.66]
[1757915773684,2.24654761,244.36,244.33,14.35488846]
[1757915773891,0.7,244.35,244.33,14.35488846]
[1757915774382,1.54654761,244.36,244.33,14.35488846]
[1757915774709,2.24654761,244.36,244.33,14.35488846]
[1757915775079,2.24654761,244.36,244.33,0.03]
[1757915775279,0.7,244.36,244.33,0.69]
[1757915775506,2.24654761,244.36,244.33,0.69]
[1757915776806,2.24654761,244.36,244.34,4.09265777]
[1757915778505,2.24654761,244.36,244.33,0.03]
[1757915778808,2.24654761,244.36,244.33,0.69]
[1757915781621,2.24654761,244.36,244.34,4.09265777]
[1757915783422,1.54654761,244.36,244.34,4.75265777]
[1757915783590,0.76,244.38,244.34,14.98430219]
[1757915783591,1.54654761,244.37,244.34,14.98430219]
[1757915783793,1.54654761,244.37,244.33,0.03]
[1757915784091,1.54654761,244.37,244.35,0.66]
[1757915784287,1.54654761,244.39,244.36,0.66]
[1757915784516,1.54654761,244.4,244.36,0.66]
[1757915784715,1.54654761,244.4,244.33,1.57654761]
[1757915784922,0.06,244.39,244.37,0.66]
[1757915785299,0.06,244.39,244.38,4.09198788]
[1757915786324,1.60654761,244.39,244.38,4.09198788]
[1757915786705,2.30654761,244.39,244.38,4.09198788]
[1757915787603,2.30654761,244.39,244.33,15.01488846]
[1757915787796,1.54654761,244.37,244.33,15.01488846]
[1757915787998,2.24654761,244.37,244.33,15.01488846]
[1757915788217,1.54654761,244.37,244.34,0.66]
[1757915788516,1.54654761,244.38,244.34,0.66]
[1757915788810,1.54654761,244.38,244.35,0.66]
[1757915789018,0.06,244.39,244.33,34.81901484]
[1757915789190,4.15659427,244.42,244.36,26.66]
[1757915789389,1.54654761,244.42,244.37,14.32254367]
[1757915789591,2.24654761,244.42,244.37,14.32254367]
[1757915789790,2.24654761,244.42,244.38,0.66]
[1757915790318,1.54654761,244.42,244.39,0.66]
[1757915790514,2.24654761,244.42,244.37,35.44332036]
[1757915790820,2.24654761,244.42,244.38,0.66]
[1757915791799,2.24654761,244.42,244.39,14.98137157]
[1757915792097,2.24654761,244.42,244.39,14.32137157]
[1757915793626,0.7,244.42,244.39,14.32137157]
[1757915793815,1.54654761,244.43,244.39,14.32137157]
[1757915794130,2.20654761,244.43,244.39,15.04137157]
[1757915794619,1.54654761,244.43,244.4,0.72]
[1757915794819,1.54654761,244.43,244.41,0.72]
[1757915795025,1.54654761,244.43,244.42,4.09131822]
[1757915795204,27.54654761,244.44,244.42,14.31961377]
[1757915795403,28.20654761,244.44,244.42,14.31961377]
[1757915795609,2.20654761,244.43,244.42,14.31961377]
[1757915795815,0.66,244.43,244.42,14.31961377]
[1757915796018,1.54654761,244.43,244.42,14.31961377]
[1757915796599,0.66,244.43,244.42,14.31961377]
[1757915796802,2.20654761,244.43,244.42,14.31961377]
[1757915796998,2.20654761,244.43,244.37,35.50332036]
[1757915797195,2.20654761,244.43,244.37,34.78332036]
[1757915797399,2.20654761,244.43,244.38,0.72]
[1757915797599,1.54654761,244.42,244.37,34.78332036]
[1757915797799,26.0,244.44,244.39,0.72]
[1757915798195,1.54654761,244.43,244.4,0.72]
[1757915798907,1.54654761,244.43,244.41,4.09148561]
[1757915799108,26.0,244.44,244.42,0.71]
[1757915799409,27.54654761,244.44,244.42,0.71]
[1757915799814,27.54654761,244.44,244.41,4.09148561]
[1757915799815,27.54654761,244.44,244.43,0.71]
[1757915800699,26.0,244.44,244.43,4.80115084]
[1757915801031,27.54654761,244.44,244.43,4.09115084]
[1757915801222,1.54654761,244.44,244.43,14.31902794]
[1757915802397,0.72,244.44,244.43,14.31902794]
[1757915802715,1.54654761,244.44,244.43,14.31902794]
[1757915802920,1.54654761,244.44,244.43,10.2278771]
[1757915803826,0.72,244.46,244.43,10.2278771]
[1757915804012,1.54654761,244.44,244.43,10.2278771]
[1757915808030,2.26654761,244.44,244.43,10.2278771]
[1757915808214,1.54654761,244.44,244.43,10.2278771]
[1757915808815,2.26654761,244.44,244.43,10.2278771]
[1757915809316,1.54654761,244.44,244.43,10.2278771]
[1757915810141,2.26654761,244.44,244.43,10.2278771]
[1757915811147,33.96654761,244.44,244.41,4.09148561]
[1757915811439,1.54654761,244.42,244.41,4.09148561]
[1757915811641,2.26654761,244.42,244.41,4.09148561]
[1757915812109,1.54654761,244.42,244.41,4.09148561]
[1757915812309,2.26654761,244.42,244.41,4.09148561]
[1757915812508,28.26654761,244.42,244.41,4.09148561]
[1757915813124,26.0,244.41,244.38,0.03]
[1757915813417,1.54654761,244.39,244.38,0.03]
[1757915813827,2.26654761,244.39,244.38,0.03]
[1757915816234,26.0,244.36,244.33,0.03]
[1757915816434,1.54654761,244.34,244.33,0.03]
[1757915816625,33.26654761,244.34,244.33,0.03]
[1757915816963,33.97654761,244.34,244.33,0.03]
[1757915818941,33.97654761,244.34,244.3,0.03]
[1757915818942,26.0,244.31,244.3,0.03]
[1757915819132,59.24654761,244.31,244.3,0.03]
[1757915819451,73.55214162,244.31,244.3,0.03]
[1757915820550,13.59559401,244.3,244.28,0.03]
[1757915820739,26.0,244.27,244.24,0.03]
[1757915820940,1.54654761,244.25,244.24,0.03]
[1757915821334,15.85214162,244.25,244.24,0.03]
[1757915821642,26.0,244.22,244.18,4.12433344]
[1757915821822,62.5811038,244.22,244.17,4.09546442]
[1757915822027,63.2911038,244.22,244.17,4.09546442]
[1757915822234,66.6604577,244.22,244.17,4.09546442]
[1757915822440,64.2399058,244.22,244.17,4.09546442]
[1757915823019,60.8705519,244.22,244.17,4.09546442]
[1757915823216,60.8705519,244.22,244.17,4.74546442]
[1757915823437,60.8705519,244.22,244.19,0.03]
[1757915824548,2.4205519,244.22,244.21,0.68]
[1757915824856,13.59559401,244.29,244.21,0.68]
[1757915825054,2.4205519,244.23,244.21,12.99552372]
[1757915825224,2.4205519,244.22,244.21,12.34552372]
[1757915825720,0.71,244.3,244.21,27.32745115]
[1757915826060,132.5,244.32,244.22,0.65]
[1757915826224,2.4205519,244.27,244.22,0.65]
[1757915826547,2.4205519,244.33,244.26,2.4205519]
[1757915826717,28.4205519,244.34,244.27,3.0705519]
[1757915826918,34.2605519,244.34,244.28,0.65]
[1757915827354,2.4205519,244.34,244.28,0.65]
[1757915827653,60.2605519,244.35,244.29,47.10518123]
[1757915827856,60.2605519,244.35,244.3,0.65]
[1757915828352,2.4205519,244.33,244.3,0.65]
[1757915828647,2.4205519,244.33,244.31,0.65]
[1757915829146,2.4205519,244.32,244.29,47.10518123]
[1757915829343,2.4205519,244.31,244.29,27.35770406]
[1757915829822,2.4205519,244.31,244.29,26.63770406]
[1757915830018,2.4205519,244.31,244.29,27.35770406]
[1757915830444,2.4205519,244.3,244.29,26.63770406]
[1757915830658,2.4205519,244.3,244.29,14.32723401]
[1757915832156,3.1205519,244.3,244.29,10.23373858]
[1757915832524,3.1205519,244.3,244.27,4.09383059]
[1757915832724,28.4205519,244.28,244.27,4.09383059]
[1757915832948,60.2605519,244.28,244.27,4.09383059]
[1757915833349,0.7,244.35,244.27,15.04840708]
[1757915833652,2.4205519,244.38,244.31,2.4205519]
[1757915833854,3.1805519,244.44,244.32,0.72]
[1757915833855,2.4205519,244.35,244.32,0.72]
[1757915834043,26.0,244.4,244.33,4.09282527]
[1757915834229,2.4205519,244.36,244.33,27.35283323]
[1757915834430,2.4205519,244.35,244.34,0.72]
[1757915835161,2.4205519,244.35,244.33,26.63283323]
[1757915835457,2.4205519,244.36,244.34,0.72]
[1757915836041,2.4205519,244.36,244.35,4.09249028]
[1757915836468,2.4205519,244.36,244.35,17.12094003]
[1757915838552,2.4205519,244.36,244.35,16.40094003]
[1757915838860,2.4205519,244.36,244.35,27.35216573]